bitfinex/quotes_ETHUSD_20240711
["timestamp","ask_amount","ask_price","bid_price","bid_amount"]
[1720660083777,0.07349433,3108.5,3107.3,2.3494]
[1720660084111,0.07306993,3108.4,3107.3,2.3494]
[1720660084323,0.57142,3108.7,3107.3,2.3494]
[1720660084485,0.07300746,3108.3,3107.3,2.3494]
[1720660084692,0.57142,3108.7,3107.3,2.3494]
[1720660084892,0.07295816,3108.2,3107.5,0.26388344]
[1720660085197,2.3162,3108.8,3107.5,0.26388344]
[1720660085515,1.1881248,3108.7,3107.5,0.26388344]
[1720660085714,0.07308524,3108.7,3107.5,0.26388344]
[1720660086222,0.07308524,3108.7,3107.6,2.4827529]
[1720660086425,0.07308524,3108.7,3107.7,0.27466363]
[1720660086579,3.0,3109.1,3107.7,0.27466363]
[1720660086774,0.07046353,3108.6,3107.7,0.27466363]
[1720660086976,2.4737,3109.2,3107.7,0.27466363]
[1720660086977,3.0,3109.1,3107.7,0.27466363]
[1720660087513,5.8717,3109.2,3107.8,2.4184]
[1720660087514,0.07102144,3109.0,3107.8,2.4184]
[1720660087677,0.07102144,3109.0,3107.9,0.56930636]
[1720660087878,0.07102144,3109.0,3107.8,2.48274621]
[1720660088494,0.07102144,3109.0,3107.8,2.4184]
[1720660090288,0.07102144,3109.0,3107.9,0.55]
[1720660090487,3.0,3109.4,3107.9,0.55]
[1720660090692,0.07061214,3108.9,3107.9,0.55]
[1720660090934,3.0,3109.4,3108.0,0.29684]
[1720660091115,0.07058673,3108.8,3108.0,0.29684]
[1720660091314,3.398,3109.3,3108.0,0.29684]
[1720660091632,0.07055556,3108.7,3108.0,0.29684]
[1720660091790,3.398,3109.3,3108.0,0.29684]
[1720660091996,0.07055747,3108.6,3108.0,0.29684]
[1720660092221,0.3398,3109.2,3108.0,0.29684]
[1720660092420,1.11490848,3109.1,3108.0,0.29684]
[1720660092608,2.4501,3109.0,3108.0,0.29684]
[1720660093029,0.07060819,3108.9,3108.0,0.29684]
[1720660093895,0.32267901,3108.9,3107.8,2.4184]
[1720660094091,0.32267901,3108.9,3106.9,9.70086311]
[1720660094092,0.32267901,3108.9,3107.5,2.63598344]
[1720660094336,1.11500494,3108.8,3107.5,2.63598344]
[1720660094521,1.11500494,3108.7,3107.5,2.63598344]
[1720660094698,1.18558987,3108.7,3107.5,2.63598344]
[1720660094895,1.11500494,3108.6,3107.5,2.63598344]
[1720660095097,1.18555075,3108.6,3107.5,2.63598344]
[1720660095336,1.11500494,3108.5,3107.5,2.63598344]
[1720660095630,1.18547775,3108.5,3107.5,2.63598344]
[1720660095830,0.07047281,3108.5,3107.5,2.63598344]
[1720660096034,1.11506894,3108.4,3107.5,2.63598344]
[1720660096330,0.07043569,3108.3,3107.5,2.63598344]
[1720660096514,8.33404726,3108.9,3107.5,2.63598344]
[1720660096515,3.398,3108.7,3107.5,2.63598344]
[1720660096720,0.07041027,3108.2,3107.5,2.3721]
[1720660096944,0.07041027,3108.2,3106.8,3.64232036]
[1720660096945,2.2546,3108.2,3107.1,2.2523]
[1720660097146,1.18552407,3108.1,3107.1,2.2523]
[1720660097429,1.18552407,3108.1,3106.8,0.32187459]
[1720660097430,1.11515294,3108.0,3106.8,0.32187459]
[1720660097635,1.11515294,3108.0,3106.9,0.25741746]
[1720660097793,0.07017586,3107.9,3106.9,0.25741746]
[1720660098006,0.07017586,3107.9,3106.8,0.32187459]
[1720660098007,1.11515294,3107.8,3106.8,0.32187459]
[1720660098410,0.06994199,3107.7,3106.8,0.32187459]
[1720660099048,5.6526,3108.2,3106.8,0.32187459]
[1720660099351,1.68422957,3108.4,3106.8,0.32187459]
[1720660099352,2.2546,3107.5,3106.8,0.32187459]
[1720660099552,1.3407395,3107.4,3106.8,0.32187459]
[1720660099713,0.29528338,3107.4,3106.8,0.32187459]
[1720660100849,0.06982338,3107.4,3106.8,0.32187459]
[1720660101057,0.06982338,3107.4,3106.9,2.3605]
[1720660101208,8.26509906,3108.0,3106.9,2.42486552]
[1720660101209,3.0,3107.9,3106.9,2.42486552]
[1720660101411,0.06959084,3107.3,3107.0,0.06436555]
[1720660101630,5.83959906,3108.0,3107.0,0.06436555]
[1720660101836,0.0672647,3107.2,3107.1,2.3605]
[1720660102037,5.83959906,3108.0,3107.1,2.60298656]
[1720660102451,0.0674779,3107.9,3107.1,2.60298656]
[1720660103344,0.0674779,3107.9,3106.8,2.68237459]
[1720660106118,5.4255,3108.4,3106.9,0.0643649]
[1720660106313,0.06514543,3107.8,3106.9,0.0643649]
[1720660106521,5.4255,3108.4,3107.0,0.55]
[1720660106741,0.06549757,3107.7,3107.0,0.55]
[1720660106925,3.0,3108.3,3106.9,0.55]
[1720660107135,0.06552526,3107.6,3107.0,0.32323746]
[1720660107451,3.0,3108.3,3107.0,0.32323746]
[1720660107655,1.11517944,3108.2,3107.0,0.32323746]
[1720660107848,1.18047419,3108.2,3107.0,0.32323746]
[1720660108052,1.11517944,3108.1,3107.0,0.32323746]
[1720660108353,0.0652518,3108.0,3107.0,0.32323746]
[1720660108655,2.4255,3107.9,3107.0,0.32323746]
[1720660108840,0.24907518,3107.8,3106.8,0.32187459]
[1720660109051,0.31430245,3107.8,3106.8,0.32187459]
[1720660109761,1.11537563,3107.7,3106.8,0.32187459]
[1720660109916,2.4255,3107.6,3106.8,0.32187459]
[1720660110118,1.47602638,3107.5,3106.8,0.32187459]
[1720660110327,1.1154653,3107.4,3106.8,0.32187459]
[1720660110543,6.9389653,3107.3,3106.8,0.32187459]
[1720660110749,5.416,3107.1,3106.8,0.32187459]
[1720660110946,1.11556017,3107.0,3106.8,0.32187459]
[1720660111170,0.65315602,3106.9,3106.8,0.32187459]
[1720660111467,0.71789115,3106.9,3106.8,0.32187459]
[1720660111837,1.8335378,3106.9,3106.8,0.32187459]
[1720660112738,1.83355306,3106.9,3106.8,0.32187459]
[1720660112961,0.71789115,3106.9,3106.8,0.32187459]
[1720660114264,0.06473513,3106.9,3106.8,0.32187459]
[1720660114641,3.398,3107.1,3106.8,0.32187459]
[1720660114842,0.06487515,3106.9,3106.8,0.32187459]
[1720660115043,3.398,3107.1,3106.8,0.32187459]
[1720660115237,0.06448205,3106.9,3106.8,0.32187459]
[1720660115433,3.398,3107.1,3106.8,0.32187459]
[1720660115638,0.06452856,3106.9,3106.8,0.32187459]
[1720660115864,0.6398,3107.0,3106.8,0.32187459]
[1720660116173,0.06452066,3106.9,3106.8,0.32187459]
[1720660116738,0.36065075,3107.5,3106.8,0.32187459]
[1720660116739,3.36065075,3107.5,3106.8,0.32187459]
[1720660116939,0.06224567,3106.9,3106.8,0.32187459]
[1720660117165,3.36065075,3107.5,3106.8,0.32187459]
[1720660117374,0.06223986,3106.9,3106.8,0.32187459]
[1720660117535,6.75865075,3107.5,3106.8,0.32187459]
[1720660117740,0.06250426,3106.9,3106.8,0.32187459]
[1720660118054,6.75865075,3107.5,3106.8,0.32187459]
[1720660118256,0.06223405,3106.9,3106.8,0.32187459]
[1720660118464,5.83959906,3107.6,3106.8,0.32187459]
[1720660118670,0.06251794,3106.9,3106.8,0.32187459]
[1720660118891,5.83959906,3107.6,3106.8,0.32187459]
[1720660119049,0.06243409,3106.9,3106.8,0.32187459]
[1720660119400,0.06050471,3106.9,3106.8,0.32187459]
[1720660119550,5.83959906,3107.6,3106.8,0.32187459]
[1720660119887,0.06057927,3106.9,3106.8,0.32187459]
[1720660120098,6.57012991,3107.5,3106.8,0.32187459]
[1720660120387,3.398,3107.3,3106.8,0.32187459]
[1720660120989,4.5742593,3107.2,3106.8,0.32187459]
[1720660121183,3.45866424,3107.2,3106.8,0.32187459]
[1720660121382,1.46145952,3107.1,3106.8,0.32187459]
[1720660121683,0.40609395,3107.1,3106.8,0.32187459]
[1720660122261,0.06022753,3107.1,3106.8,0.32187459]
[1720660122591,9.57012991,3107.5,3106.8,0.32187459]
[1720660122747,0.06016133,3107.0,3106.8,0.32187459]
[1720660122946,3.398,3107.3,3106.8,0.32187459]
[1720660123270,0.06013589,3106.9,3106.8,0.32187459]
[1720660123475,3.398,3107.3,3106.8,0.32187459]
[1720660123648,0.06019255,3106.9,3106.8,0.32187459]
[1720660123980,0.06023955,3106.9,3106.8,0.32187459]
[1720660124168,0.3398,3107.2,3106.8,0.32187459]
[1720660124380,0.06023955,3106.9,3106.8,0.32187459]
[1720660124566,0.33720599,3106.9,3106.8,0.32187459]
[1720660124759,0.67410842,3106.9,3106.8,0.32187459]
[1720660125587,1.78972518,3106.9,3106.8,0.32187459]
[1720660127755,1.78976971,3106.9,3106.8,0.32187459]
[1720660128188,8.18776971,3106.9,3106.8,0.32187459]
[1720660128592,8.18776971,3106.9,3105.4,2.3729]
[1720660128796,3.398,3106.7,3105.4,2.3729]
[1720660129094,3.398,3106.5,3105.4,2.3729]
[1720660129294,3.38906129,3106.4,3105.4,2.3729]
[1720660129487,1.11584614,3106.3,3105.4,2.3729]
[1720660129685,2.33230166,3106.4,3105.4,2.3729]
[1720660129888,0.05920869,3106.2,3105.4,2.3729]
[1720660130192,0.05881641,3106.1,3105.4,2.3729]
[1720660130395,0.57303017,3106.3,3105.4,2.3729]
[1720660130564,0.05878348,3106.0,3105.4,2.3729]
[1720660130763,0.57303017,3106.3,3105.4,2.3729]
[1720660130963,0.05875802,3105.9,3105.4,2.3729]
[1720660131160,0.28464302,3106.2,3105.4,2.3729]
[1720660131473,0.05871065,3105.8,3105.4,2.3729]
[1720660131669,3.398,3106.7,3105.4,2.3729]
[1720660131983,6.398,3106.7,3105.4,2.3729]
[1720660132295,0.05882942,3106.6,3105.4,2.3729]
[1720660135487,4.51377443,3106.5,3105.4,2.3729]
[1720660135694,0.51612189,3106.4,3105.4,2.3729]
[1720660135895,1.63194453,3106.4,3105.4,2.3729]
[1720660136102,0.51612189,3106.4,3105.4,2.3729]
[1720660137311,1.11583641,3106.3,3105.4,2.3729]
[1720660137514,0.05881851,3106.2,3105.4,2.3729]
[1720660137711,0.45726039,3106.4,3105.4,2.3729]
[1720660137890,1.17468646,3106.3,3105.4,2.3729]
[1720660138088,0.16319469,3106.2,3105.4,2.3729]
[1720660138418,0.05884396,3106.3,3105.4,2.3729]
[1720660138576,0.05879305,3106.1,3105.4,2.3729]
[1720660138774,3.85526039,3106.4,3105.4,2.3729]
[1720660139008,0.05862223,3106.0,3105.4,2.3729]
[1720660139323,3.85526039,3106.4,3105.4,2.3729]
[1720660139324,0.05857347,3105.9,3105.4,2.3729]
[1720660139514,3.85526039,3106.4,3105.4,2.3729]
[1720660139810,3.85526039,3106.4,3104.4,1.68197164]
[1720660139811,0.33729553,3105.8,3104.8,2.2803]
[1720660139975,2.3739,3106.2,3104.8,2.2803]
[1720660140291,0.33730006,3105.7,3104.8,2.2803]
[1720660140480,0.05850958,3105.6,3104.8,2.2803]
[1720660140684,2.3739,3106.2,3104.8,2.2803]
[1720660140920,0.33730041,3105.6,3104.9,0.22803]
[1720660141080,0.05848412,3105.5,3104.9,0.22803]
[1720660141279,0.33730385,3105.5,3104.9,0.22803]
[1720660141691,0.05845865,3105.4,3104.9,0.22803]
[1720660143539,0.05845865,3105.4,3105.0,2.3454]
[1720660143693,0.05845865,3105.4,3105.1,0.26378381]
[1720660143893,0.05845865,3105.4,3105.2,2.4616]
[1720660150948,0.05845865,3105.4,3104.3,6.22132]
[1720660150949,0.05845865,3105.4,3104.4,2.2793]
[1720660152619,1.1161426,3105.3,3104.4,2.2793]
[1720660152806,0.05621225,3105.3,3104.4,2.2793]
[1720660153004,0.33730385,3105.5,3104.4,2.2793]
[1720660153246,0.05618678,3105.2,3104.4,2.2793]
[1720660153451,0.05665717,3105.4,3104.4,2.2793]
[1720660153613,0.05615775,3105.1,3104.4,2.2793]
[1720660153812,1.11626574,3105.0,3103.8,2.2793]
[1720660154131,0.05612371,3105.0,3103.9,0.22793]
[1720660154520,2.4823,3105.4,3103.9,0.22793]
[1720660154726,0.05588962,3104.9,3103.9,0.22793]
[1720660154925,2.4823,3105.4,3103.9,0.22793]
[1720660155120,1.11625835,3105.3,3103.8,2.2793]
[1720660155323,1.11625835,3105.2,3103.8,2.2793]
[1720660155521,0.05592099,3105.2,3103.8,2.2793]
[1720660155845,1.11625697,3105.1,3103.8,2.2793]
[1720660156021,0.05592099,3105.2,3103.8,2.2793]
[1720660156211,0.05618663,3105.0,3103.9,0.52793]
[1720660156415,0.2538221,3105.2,3103.9,0.52793]
[1720660156416,0.0562121,3105.1,3103.9,0.52793]
[1720660156616,0.33737712,3104.9,3103.9,0.52793]
[1720660157039,0.05610909,3104.8,3103.9,0.52793]
[1720660164140,0.05610909,3104.8,3103.8,2.2793]
[1720660164544,5.78330909,3104.8,3104.0,0.337377]
[1720660164742,5.78330909,3104.8,3103.8,2.2793]
[1720660164743,1.11638409,3104.7,3103.8,2.2793]
[1720660165045,0.05593967,3104.6,3103.8,2.2793]
[1720660165351,0.05557077,3104.5,3103.8,2.2793]
[1720660170385,0.05557077,3104.5,3103.5,2.3538]
[1720660172065,0.33736711,3104.4,3103.5,2.3538]
[1720660172463,0.05576279,3104.3,3103.5,2.3538]
[1720660174805,0.57831397,3104.6,3103.5,2.3538]
[1720660175106,0.05567832,3104.5,3103.5,2.3538]
[1720660175473,0.05567832,3104.5,3103.5,2.58918]
[1720660178210,0.05567832,3104.5,3103.5,2.3538]
[1720660184598,0.33737576,3104.4,3103.5,2.3538]
[1720660184794,0.05429034,3104.3,3103.5,2.3538]
[1720660186284,2.36469034,3104.3,3103.0,2.4283]
[1720660186623,1.11650497,3104.2,3103.0,2.4283]
[1720660186838,1.4646245,3104.1,3103.0,2.4283]
[1720660187119,1.11650497,3104.0,3103.0,2.4283]
[1720660187526,0.05408982,3103.9,3103.0,2.4283]
[1720660188096,0.34811953,3104.1,3103.0,2.4283]
[1720660188309,0.34811953,3104.1,3102.4,9.73844577]
[1720660188310,0.0544183,3103.8,3102.6,2.4283]
[1720660188509,1.35309986,3103.7,3102.6,2.4283]
[1720660188692,1.11661803,3103.6,3102.6,2.4283]
[1720660188919,2.3104,3103.5,3102.1,2.4283]
[1720660189113,1.11679475,3103.4,3102.1,2.4283]
[1720660189333,0.05417621,3103.4,3102.1,2.4283]
[1720660189629,0.29063383,3103.4,3102.2,0.44463]
[1720660189806,0.05417621,3103.4,3102.2,0.50908788]
[1720660190012,0.05417621,3103.4,3102.3,2.49275788]
[1720660190223,2.3104,3104.0,3102.5,3.22318]
[1720660190537,0.05188922,3103.9,3102.6,2.4283]
[1720660190833,0.05188922,3103.9,3102.7,0.06444705]
[1720660191132,0.05188922,3103.9,3102.8,0.24927471]
[1720660193409,1.11665521,3103.8,3102.6,2.4283]
[1720660193736,1.16858843,3103.7,3102.6,2.4283]
[1720660194116,0.05193322,3103.7,3102.6,2.4283]
[1720660194313,1.11671859,3103.6,3102.7,0.24283]
[1720660194646,0.05121306,3103.5,3102.7,0.24283]
[1720660195148,0.05118757,3103.4,3102.7,0.24283]
[1720660195504,2.3104,3104.0,3102.7,0.24283]
[1720660195706,0.05080215,3103.3,3102.6,2.4283]
[1720660195933,2.3104,3104.0,3102.6,2.4283]
[1720660196104,1.11672552,3103.9,3102.6,2.4283]
[1720660196325,1.11672552,3103.8,3102.6,2.4283]
[1720660196944,1.1679798,3103.7,3102.6,2.4283]
[1720660197147,1.1679798,3103.7,3102.7,0.24283]
[1720660197148,0.05126404,3103.7,3102.7,0.24283]
[1720660197512,2.3104,3104.0,3102.7,0.24283]
[1720660197713,0.05085473,3103.6,3102.7,0.24283]
[1720660197937,2.3104,3104.0,3102.7,0.24283]
[1720660198123,0.05082923,3103.5,3102.7,0.24283]
[1720660198347,2.3104,3104.0,3102.8,0.267113]
[1720660198658,1.11672083,3103.9,3102.6,2.4283]
[1720660198975,1.16772332,3103.8,3102.6,2.4283]
[1720660199127,2.2946,3103.7,3102.6,2.4283]
[1720660199532,0.05091387,3103.6,3102.6,2.4283]
[1720660199728,0.05091387,3103.6,3102.3,5.3941]
[1720660199945,1.69111252,3103.5,3102.4,0.583873]
[1720660200175,0.57435139,3103.5,3102.4,0.583873]
[1720660200376,0.57435139,3103.5,3102.3,2.3941]
[1720660200377,2.4166,3103.3,3102.3,2.3941]
[1720660200545,2.4166,3103.3,3102.3,5.3941]
[1720660200863,0.0507407,3103.2,3102.3,2.3941]
[1720660201170,1.16763718,3103.2,3102.3,2.3941]
[1720660201367,0.35842372,3103.1,3102.3,2.3941]
[1720660201580,0.35842372,3103.1,3102.0,2.3967]
[1720660201736,1.16759364,3103.0,3102.0,2.3967]
[1720660201936,0.05065361,3103.0,3102.0,2.3967]
[1720660204371,0.05065361,3103.0,3101.5,3.0]
[1720660204696,2.4091,3102.9,3101.6,3.30998766]
[1720660204855,5.6721,3102.7,3101.3,2.4868]
[1720660205047,0.05058873,3102.6,3101.3,2.4868]
[1720660205251,0.57226887,3102.5,3101.3,2.4868]
[1720660205481,5.7221257,3102.4,3101.3,2.4868]
[1720660206468,5.7221257,3102.4,3100.8,5.4868]
[1720660206778,5.7221257,3102.4,3100.9,0.06448859]
[1720660209083,5.7221257,3102.4,3100.8,5.4868]
[1720660209251,0.83123946,3102.3,3100.9,0.55512885]
[1720660209450,0.05023352,3102.2,3100.9,0.55512885]
[1720660209972,2.3437,3102.1,3100.9,0.55512885]
[1720660210281,0.04864469,3102.0,3100.9,0.55512885]
[1720660211779,2.3437,3101.9,3100.9,0.55512885]
[1720660211964,2.3437,3101.9,3100.5,2.72506244]
[1720660211965,2.3437,3101.9,3100.5,2.4067]
[1720660212167,0.04685249,3101.8,3100.5,2.4067]
[1720660212362,2.3437,3101.7,3100.5,2.4067]
[1720660212693,0.04669896,3101.6,3100.5,2.4067]
[1720660212983,0.04669896,3101.6,3100.5,2.64737]
[1720660212984,0.28573886,3101.6,3100.5,2.64737]
[1720660213491,0.04669896,3101.6,3100.6,0.06449636]
[1720660213870,2.3437,3101.7,3100.6,3.06449636]
[1720660214556,0.0469203,3101.6,3100.6,3.06449636]
[1720660215064,2.3437,3101.7,3100.6,3.06449636]
[1720660215250,0.04692822,3101.6,3100.6,3.06449636]
[1720660215452,2.3437,3101.7,3100.7,0.89371464]
[1720660215652,0.04692822,3101.6,3100.7,0.89371464]
[1720660215858,2.3437,3101.7,3100.7,0.89371464]
[1720660216094,0.04692822,3101.6,3100.7,0.89371464]
[1720660216257,2.3437,3101.7,3100.7,0.89371464]
[1720660216459,0.04692822,3101.6,3100.8,0.3958211]
[1720660216659,2.3437,3101.7,3100.8,0.3958211]
[1720660216896,0.04665743,3101.6,3100.8,0.3958211]
[1720660217206,2.3323,3101.7,3100.8,0.3958211]
[1720660217562,0.04702421,3101.6,3100.8,0.3958211]
[1720660217994,2.3323,3101.7,3100.8,0.3958211]
[1720660218311,0.04645534,3101.6,3100.6,3.0]
[1720660218516,0.04645534,3101.6,3100.5,2.64737]
[1720660219903,0.04645534,3101.6,3100.6,0.06449876]
[1720660220478,0.04645534,3101.6,3100.7,0.55]
[1720660220678,0.04645534,3101.6,3100.8,0.74845463]
[1720660221394,0.01621413,3100.9,3100.8,0.74845463]
[1720660221733,5.83959906,3101.5,3100.8,0.74845463]
[1720660222030,5.83959906,3101.5,3100.6,3.0]
[1720660222185,0.04635042,3101.4,3100.5,0.24067]
[1720660222779,0.04635042,3101.4,3100.6,0.06449667]
[1720660223005,0.04635042,3101.4,3100.7,3.0295]
[1720660223207,0.04635042,3101.4,3100.8,0.37388842]
[1720660224154,0.04635042,3101.4,3100.7,0.55]
[1720660224334,0.04635042,3101.4,3100.6,0.55]
[1720660226237,0.04635042,3101.4,3100.7,0.06449173]
[1720660226825,2.3323,3101.7,3100.7,0.06449173]
[1720660227170,0.04660633,3101.6,3100.7,0.06449173]
[1720660227528,2.4847,3101.5,3100.6,0.55]
[1720660227722,0.04643246,3101.4,3100.6,0.379067]
[1720660230833,2.4847,3101.3,3100.6,0.379067]
[1720660231058,0.04632396,3101.2,3100.6,0.379067]
[1720660231257,2.4847,3101.3,3100.1,6.54406244]
[1720660231464,2.4847,3101.3,3100.2,0.55]
[1720660231939,2.4847,3101.3,3100.1,3.0]
[1720660232138,2.4847,3101.3,3100.0,3.0732077]
[1720660232329,0.07908391,3101.2,3100.0,3.0732077]
[1720660232536,2.4006,3101.1,3100.1,0.55172077]
[1720660232841,0.07903498,3101.0,3100.1,0.55172077]
[1720660233041,2.4006,3100.9,3100.1,0.55172077]
[1720660233228,0.07898603,3100.8,3100.1,0.55172077]
[1720660233445,3.398,3101.6,3100.0,0.0732077]
[1720660233446,2.4006,3100.7,3100.0,0.0732077]
[1720660234144,2.47944204,3100.6,3100.0,0.0732077]
[1720660240647,2.4006,3100.6,3100.0,0.0732077]
[1720660241048,2.4921,3100.9,3100.0,0.0732077]
[1720660241366,0.07741927,3100.8,3100.0,0.0732077]
[1720660242468,8.33169906,3101.3,3100.1,2.0673545]
[1720660242654,0.07786204,3101.2,3100.1,3.87990877]
[1720660242855,0.07786204,3101.2,3100.1,3.9444111]
[1720660243192,2.4921,3101.3,3100.1,3.87990877]
[1720660243603,0.07786204,3101.2,3100.1,3.94441109]
[1720660243761,0.07786204,3101.2,3100.2,2.01568617]
[1720660244067,2.4921,3101.3,3100.3,1.73733546]
[1720660244274,0.07786871,3101.2,3100.3,3.61450002]
[1720660244481,2.4921,3101.7,3100.5,3.22519]
[1720660244696,2.4921,3101.7,3100.6,1.67283253]
[1720660244857,2.4921,3101.7,3100.7,0.65822757]
[1720660245474,0.07820933,3101.6,3100.7,0.65822757]
[1720660245676,2.4921,3101.7,3100.7,0.65822757]
[1720660245883,0.07818306,3101.6,3100.7,0.65822757]
[1720660246104,2.4921,3101.7,3100.7,0.65822757]
[1720660246262,0.07819619,3101.6,3100.6,0.55]
[1720660246462,2.4921,3101.7,3100.5,3.55]
[1720660246666,5.83959906,3101.8,3100.3,1.68410841]
[1720660246667,2.4921,3101.5,3100.3,1.68410841]
[1720660246888,0.0781601,3101.4,3100.2,1.68410841]
[1720660247089,2.4921,3101.3,3100.1,0.32990877]
[1720660247418,0.0781112,3101.2,3100.1,0.32990877]
[1720660249188,2.4921,3101.1,3100.1,0.32990877]
[1720660249620,0.07810109,3101.0,3100.1,0.32990877]
[1720660250522,2.3597,3100.9,3100.1,0.32990877]
[1720660250726,2.3597,3100.9,3100.0,0.0732077]
[1720660253706,0.07802217,3100.8,3100.0,0.0732077]
[1720660254548,0.33745992,3100.7,3100.0,0.0732077]
[1720660255137,0.07798083,3100.6,3100.0,0.0732077]
[1720660255341,0.33745992,3100.7,3100.0,0.0732077]
[1720660255640,0.07531997,3100.6,3100.0,0.0732077]
[1720660256041,0.33745992,3100.7,3100.0,0.0732077]
[1720660256342,0.07532672,3100.6,3100.0,0.0732077]
[1720660256546,0.33745992,3100.7,3100.0,0.0732077]
[1720660256741,0.07532447,3100.6,3100.0,0.0732077]
[1720660257040,2.3551,3100.5,3100.0,0.0732077]
[1720660257414,0.07527554,3100.4,3100.0,0.0732077]
[1720660262345,0.33745992,3100.7,3100.0,0.0732077]
[1720660262559,0.07501276,3100.6,3100.0,0.0732077]
[1720660262862,0.07501276,3100.6,3100.0,2.4686077]
[1720660263165,0.07501276,3100.6,3100.1,0.51316443]
[1720660263369,0.07501276,3100.6,3100.1,0.44866077]
[1720660266666,0.07501276,3100.6,3100.0,0.0732077]
[1720660266879,2.3078,3100.5,3100.0,0.0732077]
[1720660267371,0.07481448,3100.4,3100.0,0.0732077]
[1720660269632,0.07481448,3100.4,3100.0,2.42691829]
[1720660269837,0.33745992,3100.7,3100.0,4.11159213]
[1720660270049,0.07501247,3100.3,3100.1,0.61295921]
[1720660270253,0.33745992,3100.7,3100.2,0.06450468]
[1720660270450,0.33745992,3100.7,3100.4,3.22538]
[1720660270654,0.07488653,3100.6,3100.5,6.83977167]
[1720660270868,5.83959906,3101.7,3100.6,5.51434]
[1720660271071,2.3568,3101.8,3100.7,4.88438708]
[1720660271335,0.07301344,3101.7,3100.8,0.06448787]
[1720660272162,0.07301344,3101.7,3101.0,3.22474]
[1720660272381,0.07301344,3101.7,3101.1,0.55]
[1720660272676,0.33748483,3102.2,3101.1,0.55]
[1720660272877,0.07309965,3101.6,3101.2,0.64375333]
[1720660273047,0.33748483,3102.2,3101.3,0.06447945]
[1720660273453,0.07349559,3102.1,3101.3,0.06447945]
[1720660273887,0.07349559,3102.1,3101.4,0.55]
[1720660274389,0.33748483,3102.2,3101.4,0.55]
[1720660274576,0.33748483,3102.2,3101.4,0.99182435]
[1720660274754,0.07356082,3102.1,3101.4,0.55]
[1720660274955,0.07356082,3102.1,3101.3,0.55]
[1720660275289,0.33748483,3102.2,3101.2,0.579274]
[1720660275685,0.07366654,3102.1,3101.2,0.579274]
[1720660276063,0.33748483,3102.2,3101.2,0.579274]
[1720660276464,0.07366152,3102.1,3101.2,0.579274]
[1720660276866,0.33748483,3102.2,3101.2,0.579274]
[1720660277183,0.07365928,3102.1,3101.2,0.579274]
[1720660277601,0.33748483,3102.2,3101.2,0.579274]
[1720660277953,0.07365928,3102.1,3101.2,0.579274]
[1720660278186,0.33748483,3102.2,3101.2,0.579274]
[1720660278604,0.07366687,3102.1,3101.3,0.0644816]
[1720660278810,0.07366687,3102.1,3101.4,0.55]
[1720660279187,0.33748483,3102.2,3101.4,0.55]
[1720660279501,5.83959906,3102.8,3101.4,0.55]
[1720660279502,0.07362186,3102.1,3101.5,0.06447471]
[1720660279679,5.83959906,3102.8,3101.6,3.58387547]
[1720660279881,5.83959906,3102.8,3101.8,2.018]
[1720660279882,0.07373074,3102.7,3101.8,2.018]
[1720660280209,0.07373074,3102.7,3101.9,0.06446989]
[1720660280385,0.07373074,3102.7,3101.9,0.06446988]
[1720660280707,0.07373074,3102.7,3102.0,0.20824699]
[1720660281070,2.278,3102.9,3102.0,0.20824699]
[1720660281276,0.07380472,3102.8,3101.6,1.13567547]
[1720660281477,0.07380472,3102.8,3101.6,1.20014537]
[1720660281966,0.07380472,3102.8,3101.8,2.018]
[1720660282170,0.07380472,3102.8,3101.9,0.06446984]
[1720660286112,0.07380472,3102.8,3101.8,2.018]
[1720660286417,0.07380472,3102.8,3101.9,0.2018]
[1720660286580,0.07380472,3102.8,3101.9,0.2662698]
[1720660288702,0.07380472,3102.8,3101.9,0.2018]
[1720660288901,0.07380472,3102.8,3101.6,1.20014517]
[1720660290919,2.4374,3102.7,3101.0,9.418]
[1720660291081,0.07372689,3102.6,3101.0,2.018]
[1720660291285,2.4369,3102.6,3101.0,2.018]
[1720660291485,0.07418493,3102.5,3101.0,2.018]
[1720660292091,2.2727,3102.4,3101.0,2.018]
[1720660292295,0.07408212,3102.3,3101.0,2.018]
[1720660292482,2.92847821,3102.2,3101.0,2.018]
[1720660292677,0.0734239,3102.1,3101.0,2.018]
[1720660294633,0.0734239,3102.1,3100.5,3.0]
[1720660294634,0.0734239,3102.1,3100.6,2.018]
[1720660294806,2.4914,3102.0,3100.6,2.018]
[1720660295013,2.4914,3102.0,3100.4,3.0]
[1720660295223,5.416,3102.5,3100.2,2.018]
[1720660295224,2.82118823,3101.9,3100.5,0.3]
[1720660295394,2.82118823,3101.9,3100.2,5.018]
[1720660295599,3.398,3101.7,3100.2,2.018]
[1720660295821,2.3809,3101.6,3100.2,2.018]
[1720660296011,2.45412578,3101.6,3100.2,2.018]
[1720660296225,2.3809,3101.6,3100.2,2.018]
[1720660296426,0.57789,3101.5,3100.3,0.2018]
[1720660296736,0.0732386,3101.4,3100.3,0.2018]
[1720660297715,0.0732386,3101.4,3100.4,0.55]
[1720660297918,0.0732386,3101.4,3100.6,2.018]
[1720660298118,2.3809,3101.6,3100.7,0.55]
[1720660298297,0.07298547,3101.5,3100.8,0.2568]
[1720660300235,0.07298547,3101.5,3100.6,2.018]
[1720660301335,0.07298547,3101.5,3100.3,0.2018]
[1720660302146,0.07298547,3101.5,3100.3,0.26629626]
[1720660302347,0.07298547,3101.5,3100.6,2.018]
[1720660306747,0.07298547,3101.5,3100.3,0.2018]
[1720660306950,0.07298547,3101.5,3100.4,1.094539]
[1720660308470,0.07298547,3101.5,3100.4,0.544539]
[1720660308672,2.3721,3101.4,3100.4,0.544539]
[1720660309181,0.07034827,3101.3,3100.4,0.544539]
[1720660315780,2.3236,3101.2,3100.4,0.544539]
[1720660315986,2.3236,3101.2,3100.5,0.3746339]
[1720660318388,2.3236,3101.2,3100.5,0.43913098]
[1720660319519,2.4779,3101.9,3100.5,2.83093098]
[1720660319686,1.11739082,3101.8,3100.5,2.7664339]
[1720660319885,3.39049082,3101.7,3100.5,0.3746339]
[1720660320084,1.11739082,3101.6,3100.5,0.3746339]
[1720660320319,2.2731,3101.5,3100.5,0.3746339]
[1720660320836,0.07040224,3101.4,3100.5,0.3746339]
[1720660321786,0.07040224,3101.4,3100.6,2.018]
[1720660322007,0.07040224,3101.4,3100.7,0.78926339]
[1720660322378,2.2985,3101.8,3100.7,0.78926339]
[1720660322717,1.18793105,3101.7,3100.7,0.78926339]